bitfinex/quotes_BTCUSD_20250417
["timestamp","ask_amount","ask_price","bid_price","bid_amount"]
[1744900205799,0.01190844,83974.0,83968.0,0.2500925]
[1744900206030,0.25007758,83974.0,83968.0,0.2500925]
[1744900206257,0.01190844,83974.0,83969.0,0.23818302]
[1744900206488,0.01190844,83974.0,83971.0,0.23817574]
[1744900207121,0.01190844,83974.0,83972.0,0.23817448]
[1744900207335,0.001,83974.0,83972.0,0.23817448]
[1744900207538,0.001,83974.0,83973.0,0.23817179]
[1744900207713,0.002,83974.0,83973.0,0.23817179]
[1744900207915,0.001,83974.0,83973.0,0.23817179]
[1744900208330,0.003,83974.0,83973.0,0.23817179]
[1744900208585,0.01190873,83972.0,83970.0,0.23817952]
[1744900208889,0.01190858,83973.0,83971.0,0.23817683]
[1744900209334,0.25008061,83973.0,83970.0,0.23817952]
[1744900209555,0.25207782,83974.0,83971.0,0.23817614]
[1744900209778,0.002,83974.0,83973.0,0.23817179]
[1744900210245,0.002,83974.0,83973.0,0.57817179]
[1744900210467,0.0008422,83976.0,83975.0,0.23816612]
[1744900210680,0.0008422,83976.0,83974.0,0.23816858]
[1744900210900,0.0008422,83976.0,83975.0,0.23816612]
[1744900211128,0.01275036,83976.0,83973.0,0.34]
[1744900211326,0.001,83974.0,83973.0,0.34]
[1744900212203,0.23916895,83974.0,83973.0,0.34]
[1744900212716,0.23816895,83974.0,83973.0,0.34]
[1744900214013,0.0008422,83976.0,83974.0,0.23816895]
[1744900214456,0.0008422,83976.0,83975.0,0.23816612]
[1744900214719,0.0008422,83976.0,83975.0,0.57816612]
[1744900216259,0.0008422,83976.0,83975.0,0.71315488]
[1744900216475,0.0008424,83982.0,83975.0,0.71315488]
[1744900216476,0.0008424,83982.0,83981.0,0.59268995]
[1744900216732,0.00090718,83982.0,83981.0,0.71213786]
[1744900216957,6.478e-05,83984.0,83983.0,0.25268428]
[1744900217170,6.478e-05,83984.0,83983.0,0.71213219]
[1744900217396,0.004,83989.0,83988.0,0.57812925]
[1744900217615,0.004,83989.0,83988.0,0.69757716]
[1744900218235,0.004,83989.0,83988.0,0.75761801]
[1744900218907,0.000842,83994.0,83993.0,0.57811508]
[1744900220597,0.001842,83994.0,83993.0,0.57811508]
[1744900220811,0.001842,83994.0,83993.0,0.34]
[1744900221049,0.23995424,83994.0,83993.0,0.34]
[1744900221237,0.24195424,83994.0,83993.0,0.34]
[1744900224305,0.003842,83994.0,83993.0,0.57811508]
[1744900224774,0.000842,84001.0,83997.0,0.01190518]
[1744900224996,0.23809797,84000.0,83997.0,0.34]
[1744900225259,0.25083923,84001.0,83997.0,0.35190518]
[1744900225518,0.01274662,84001.0,83999.0,0.34]
[1744900225779,0.000842,84001.0,84000.0,0.57809523]
[1744900226027,0.000842,84001.0,84000.0,0.62419523]
[1744900227547,0.000842,84001.0,84000.0,0.68795548]
[1744900227550,0.001842,84001.0,84000.0,0.80740339]
[1744900227762,0.000842,84001.0,84000.0,0.80740339]
[1744900227986,0.000842,84001.0,84000.0,0.80840339]
[1744900229139,0.000842,84010.0,84009.0,0.59261058]
[1744900229366,0.00097799,84010.0,84009.0,0.71205849]
[1744900230471,0.00097799,84010.0,84009.0,0.71305849]
[1744900230689,0.00097799,84010.0,84009.0,0.71405849]
[1744900231780,0.00097799,84010.0,84009.0,0.71505849]
[1744900232002,0.00097799,84010.0,84009.0,0.7238447]
[1744900232265,0.28694488,84010.0,84009.0,0.01178621]
[1744900232493,0.0119083,83975.0,83964.0,0.047]
[1744900232718,0.01190788,83978.0,83971.0,0.25008475]
[1744900232941,0.01190688,83985.0,83976.0,0.48316069]
[1744900233166,0.01190688,83985.0,83973.0,0.34]
[1744900233167,0.25006315,83979.0,83975.0,0.45946217]
[1744900233399,0.250058,83981.0,83975.0,0.0119083]
[1744900233615,0.01190759,83980.0,83974.0,0.0985364]
[1744900233878,0.01190745,83981.0,83977.0,0.01190802]
[1744900234068,0.25005442,83982.0,83978.0,0.23815688]
[1744900234297,0.01190759,83980.0,83975.0,0.01554085]
[1744900234552,0.01190759,83980.0,83978.0,0.11944791]
[1744900234778,0.01190745,83981.0,83978.0,0.11944791]
[1744900234995,0.01190745,83981.0,83979.0,0.34]
[1744900235496,0.25005422,83982.0,83979.0,0.34]
[1744900237411,0.25005422,83982.0,83972.0,6.478e-05]
[1744900237412,0.23817179,83973.0,83972.0,6.478e-05]
[1744900241235,0.23820583,83961.0,83960.0,0.41269755]
[1744900241461,0.23822853,83953.0,83952.0,0.1452]
[1744900241696,0.23822853,83953.0,83952.0,0.34]
[1744900241908,0.23822853,83953.0,83952.0,0.30328031]
[1744900242144,0.23822853,83953.0,83952.0,0.24505398]
[1744900242361,0.23822613,83954.0,83952.0,0.04806781]
[1744900243319,0.25013005,83957.0,83952.0,0.04806781]
[1744900243540,0.01191085,83957.0,83952.0,0.04806781]
[1744900243746,0.01191085,83957.0,83952.0,0.05997937]
[1744900243959,0.01191085,83957.0,83952.0,0.39997937]
[1744900244174,0.25012896,83957.0,83952.0,0.38806781]
[1744900244397,0.01191085,83957.0,83952.0,0.62629736]
[1744900244586,0.01191085,83957.0,83953.0,0.01191142]
[1744900244708,0.25012538,83958.0,83953.0,0.01191142]
[1744900244919,0.2501191,83960.0,83955.0,0.01191114]
[1744900245133,0.01191043,83960.0,83954.0,0.01191128]
[1744900245357,0.01191,83963.0,83955.0,0.01191114]
[1744900245562,0.01191,83963.0,83954.0,0.35191128]
[1744900245563,0.01191071,83958.0,83954.0,0.01191128]
[1744900245801,0.01191043,83960.0,83955.0,0.01191114]
[1744900246024,0.25011957,83960.0,83955.0,0.01191114]
[1744900246253,0.250123,83959.0,83954.0,0.35191128]
[1744900246502,0.01191057,83959.0,83954.0,0.59013445]
[1744900246696,0.01191057,83959.0,83955.0,0.01191114]
[1744900246946,0.01191085,83957.0,83953.0,0.01191142]
[1744900247144,0.25012252,83959.0,83954.0,0.01191128]
[1744900247353,0.01191057,83959.0,83954.0,0.01191128]
[1744900247663,0.25012486,83959.0,83954.0,0.01191128]
[1744900247839,0.25012622,83958.0,83953.0,0.25013941]
[1744900248335,0.25012622,83958.0,83953.0,0.26200008]
[1744900248524,0.01191043,83960.0,83956.0,0.011911]
[1744900249160,0.01191071,83958.0,83953.0,0.02377209]
[1744900249377,0.01191029,83961.0,83956.0,0.011911]
[1744900249587,0.01191071,83958.0,83953.0,0.26199808]
[1744900249790,0.01191071,83958.0,83954.0,0.01191128]
[1744900249990,0.25012535,83958.0,83954.0,0.01191128]
[1744900250796,0.01191043,83960.0,83955.0,0.01191114]
[1744900251010,0.25012165,83960.0,83955.0,0.35191114]
[1744900251225,0.01191071,83958.0,83955.0,0.34]
[1744900251443,0.01191057,83959.0,83954.0,0.01191128]
[1744900252607,0.25012505,83958.0,83955.0,0.34]
[1744900252868,0.23821736,83957.0,83955.0,0.34]
[1744900253817,0.25012821,83957.0,83953.0,0.60200017]
[1744900254894,0.25012821,83957.0,83953.0,0.36377209]
[1744900255656,0.25012821,83957.0,83953.0,0.35186067]
[1744900255657,0.01191085,83957.0,83953.0,0.35186067]
[1744900255871,0.25013102,83956.0,83953.0,0.01186067]
[1744900256691,0.01191085,83957.0,83955.0,0.34]
[1744900256915,0.25012851,83957.0,83953.0,0.01186067]
[1744900257935,0.25013263,83956.0,83953.0,0.01186067]
[1744900258173,0.23822569,83954.0,83953.0,0.01186067]
[1744900259951,0.23824563,83947.0,83944.0,0.20228726]
[1744900260189,0.23825036,83946.0,83944.0,0.2024233]
[1744900260410,0.01191171,83951.0,83944.0,0.214336]
[1744900260411,0.25015016,83950.0,83944.0,0.214336]
[1744900260633,0.25015016,83950.0,83945.0,0.23825001]
[1744900260865,0.2382436,83948.0,83944.0,0.25030234]
[1744900261084,0.25015573,83948.0,83944.0,0.25030234]
[1744900261523,0.25015016,83950.0,83945.0,0.25016343]
[1744900261773,0.002,83948.0,83945.0,0.25016343]
[1744900261982,0.002,83948.0,83946.0,0.34]
[1744900262655,0.25015016,83950.0,83946.0,0.34]
[1744900262656,0.0487,83968.0,83965.0,0.01190972]
[1744900263033,0.000842,84010.0,83982.0,0.01190731]
[1744900263034,0.0487,83990.0,83982.0,0.01190731]
[1744900263037,0.01190447,84002.0,83992.0,0.34]
[1744900263231,0.25000371,83999.0,83992.0,0.34]
[1744900263453,0.23895708,83993.0,83992.0,0.34]
[1744900263899,0.01190816,83976.0,83971.0,0.14528]
[1744900264110,0.001842,83993.0,83971.0,0.14528]
[1744900264111,0.01190603,83991.0,83986.0,0.01190674]
[1744900264491,0.01190646,83988.0,83984.0,0.5900464]
[1744900264689,0.25003917,83987.0,83984.0,0.34]
[1744900264901,0.0119066,83987.0,83984.0,0.632079]
[1744900265109,0.25200013,83993.0,83990.0,0.34]
[1744900265336,0.00197796,83993.0,83992.0,0.57811791]
[1744900266019,0.00397796,83993.0,83992.0,0.57811791]
[1744900266252,0.00197796,83993.0,83992.0,0.58722928]
[1744900266483,0.00297796,83993.0,83992.0,0.00911137]
[1744900267027,0.23811791,83992.0,83990.0,0.328]
[1744900267264,0.25005655,83981.0,83980.0,0.45946217]
[1744900267499,0.25005655,83981.0,83977.0,0.01190802]
[1744900267732,0.25005655,83981.0,83980.0,0.04142809]
[1744900267963,0.23816389,83976.0,83971.0,0.00910086]
[1744900268423,0.23816389,83976.0,83974.0,0.18694715]
[1744900268646,0.23816389,83976.0,83974.0,0.18644715]
[1744900268865,0.01190802,83977.0,83974.0,0.18644715]
[1744900269086,0.01190802,83977.0,83975.0,0.34]
[1744900269301,0.23815949,83978.0,83975.0,0.34]
[1744900269523,0.25006333,83979.0,83975.0,0.34]
[1744900269743,0.01190773,83979.0,83975.0,0.34]
[1744900269965,0.23816105,83977.0,83975.0,0.34]
[1744900270188,0.01190773,83979.0,83975.0,0.34]
[1744900270408,0.01190788,83978.0,83975.0,0.34]
[1744900270681,0.23816544,83976.0,83974.0,0.04170715]
[1744900270921,0.00197796,83993.0,83959.0,0.32990802]
[1744900271145,0.23821905,83957.0,83955.0,0.14524]
[1744900271376,0.23821905,83957.0,83950.0,0.7382355]
[1744900271377,0.01191128,83954.0,83950.0,0.5]
[1744900271609,0.2382342,83951.0,83950.0,0.45585492]
[1744900271847,0.35768211,83951.0,83950.0,0.44704777]
[1744900272076,0.35768211,83951.0,83950.0,0.31]
[1744900272308,0.23824555,83947.0,83941.0,0.0004209]
[1744900272531,0.35769346,83947.0,83941.0,0.0004209]
[1744900272761,0.35769346,83947.0,83946.0,0.00113604]
[1744900273001,0.23828813,83932.0,83931.0,0.34]
[1744900273423,0.23828813,83932.0,83930.0,0.36446217]
[1744900273428,0.23828813,83932.0,83926.0,0.04046497]
[1744900273429,0.23830233,83927.0,83926.0,0.04046497]
[1744900273652,0.23830233,83927.0,83926.0,0.000421]
[1744900273887,0.01191611,83920.0,83916.0,0.01191667]
[1744900274111,0.01191469,83930.0,83925.0,0.0119154]
[1744900274334,0.01191497,83928.0,83922.0,0.23831588]
[1744900274605,0.01191525,83926.0,83923.0,0.04037654]
[1744900274817,0.01191525,83926.0,83921.0,0.01191596]
[1744900275032,0.01191511,83927.0,83923.0,0.04004808]
[1744900275249,0.25022119,83926.0,83921.0,0.00884355]
[1744900275467,0.25022937,83923.0,83920.0,0.27789748]
[1744900275679,0.23831937,83921.0,83920.0,0.01790801]
[1744900275920,0.25022937,83923.0,83920.0,0.01790801]
[1744900276152,0.01191582,83922.0,83917.0,0.25024698]
[1744900276403,0.01191554,83924.0,83917.0,0.01191653]
[1744900276617,0.01191596,83921.0,83915.0,0.00045503]
[1744900276837,0.25023832,83920.0,83915.0,0.01237185]
[1744900277054,0.01191611,83920.0,83915.0,0.01237185]
[1744900277286,0.25021817,83927.0,83922.0,0.01191582]
[1744900277499,0.01191554,83924.0,83920.0,0.34]
[1744900277714,0.01191525,83926.0,83921.0,0.01191596]
[1744900277923,0.0119154,83925.0,83921.0,0.01191596]
[1744900278139,0.0119154,83925.0,83920.0,0.38199012]
[1744900278140,0.01191554,83924.0,83920.0,0.38199012]
[1744900278357,0.25023213,83923.0,83920.0,0.38199012]
[1744900278491,0.23831653,83922.0,83920.0,0.04199012]
[1744900278720,0.01191596,83921.0,83918.0,0.34]
[1744900279331,0.01191582,83922.0,83918.0,0.34]
[1744900279921,0.01191568,83923.0,83918.0,0.29128926]
[1744900280801,0.01191483,83929.0,83923.0,0.34]
[1744900281094,0.25021239,83929.0,83924.0,0.01191554]
[1744900281310,0.01191483,83929.0,83925.0,0.0119154]
[1744900281540,0.01191525,83926.0,83923.0,0.34]
[1744900282192,0.01191497,83928.0,83924.0,0.01191554]
[1744900282423,0.25021744,83927.0,83924.0,0.01191554]
[1744900282649,0.25022179,83926.0,83923.0,0.34]
[1744900283788,0.2502258,83925.0,83921.0,0.01191596]
[1744900284028,0.2502258,83925.0,83921.0,0.25023405]
[1744900284240,0.2502258,83925.0,83921.0,0.01191596]
[1744900284447,0.2502258,83925.0,83921.0,0.25023425]
[1744900284669,0.0119154,83925.0,83922.0,0.01191582]
[1744900284918,0.0119154,83925.0,83917.0,0.34]
[1744900285129,0.01191596,83921.0,83917.0,0.34]
[1744900285343,0.23832505,83919.0,83917.0,0.34]
[1744900286631,0.23832505,83919.0,83917.0,0.04052304]
[1744900287065,0.23833357,83916.0,83913.0,0.00871056]
[1744900287502,0.01191639,83918.0,83900.0,0.13211789]
[1744900287503,0.23837334,83902.0,83900.0,0.13211789]
[1744900287721,0.23837334,83902.0,83901.0,0.34009197]
[1744900288347,0.23837334,83902.0,83901.0,0.04056982]
[1744900290256,0.23837334,83902.0,83901.0,0.28556982]
[1744900290465,0.01191639,83918.0,83909.0,0.01191767]
[1744900290670,0.01191454,83931.0,83924.0,0.01191554]
[1744900290882,0.2502413,83919.0,83915.0,0.2502515]
[1744900291083,0.01191596,83921.0,83917.0,0.01191653]
[1744900291356,0.23832518,83919.0,83916.0,0.23833249]
[1744900291549,0.25024143,83919.0,83915.0,0.01191682]
[1744900291744,0.25024742,83917.0,83914.0,0.2383387]
[1744900291995,0.25024742,83917.0,83914.0,0.23833903]
[1744900292156,0.25025658,83914.0,83910.0,0.2383484]
[1744900292369,0.25025658,83914.0,83911.0,0.34]
[1744900292711,0.23834493,83912.0,83911.0,0.34]
[1744900293145,0.23834493,83912.0,83911.0,0.245]
[1744900293385,0.2502862,83904.0,83901.0,0.001]
[1744900293638,0.01191795,83907.0,83903.0,0.23836779]
[1744900293872,0.25028026,83906.0,83902.0,0.01191866]
[1744900294085,0.25028026,83906.0,83902.0,0.25029129]
[1744900294295,0.01191809,83906.0,83902.0,0.25029125]
[1744900294699,0.25028025,83906.0,83902.0,0.25029125]
[1744900295120,0.01191795,83907.0,83905.0,0.34]
[1744900295333,0.01191795,83907.0,83905.0,0.57836435]
[1744900295555,0.25027524,83908.0,83905.0,0.34]
[1744900296197,0.23837334,83902.0,83901.0,0.341]
[1744900297115,0.25028783,83904.0,83901.0,0.341]
[1744900297329,0.23834113,83914.0,83901.0,0.341]
[1744900297330,0.01191554,83924.0,83914.0,0.01191696]
[1744900297563,0.25024254,83919.0,83916.0,0.34]
[1744900297824,0.23833724,83915.0,83913.0,0.34]
[1744900298064,0.01191724,83912.0,83906.0,0.01191809]
[1744900298287,0.25026515,83911.0,83907.0,0.25027601]
[1744900298530,0.25026586,83911.0,83908.0,0.25027298]
[1744900299001,0.23837121,83903.0,83899.0,0.25030006]
[1744900299226,0.25028941,83904.0,83900.0,0.18120024]
[1744900299459,0.23837332,83903.0,83900.0,0.18120024]
[1744900299700,0.23837332,83903.0,83900.0,0.41957879]
[1744900299945,0.01191795,83907.0,83900.0,0.41957879]
[1744900299946,0.01191738,83911.0,83906.0,0.01191809]
[1744900300172,0.01191767,83909.0,83906.0,0.34]
[1744900300892,0.01191611,83920.0,83915.0,0.01191682]
[1744900301160,0.01191611,83920.0,83917.0,0.35191653]
[1744900301475,0.01191525,83926.0,83921.0,0.01191596]
[1744900301476,0.0119154,83925.0,83921.0,0.01191596]
[1744900301713,0.23832022,83921.0,83919.0,0.34]
[1744900301931,0.23831993,83921.0,83919.0,0.34]
[1744900302354,0.23931993,83921.0,83919.0,0.34]
[1744900302563,0.01191738,83911.0,83910.0,0.79946217]
[1744900302781,0.25025879,83914.0,83911.0,0.34]
[1744900303000,0.23834234,83913.0,83911.0,0.34]
[1744900303408,0.23834289,83913.0,83911.0,0.34]
[1744900303619,0.25024822,83917.0,83914.0,0.34]
[1744900304027,0.25024822,83917.0,83914.0,0.57833789]
[1744900304272,0.25024822,83917.0,83914.0,0.34]
[1744900304484,0.23833486,83916.0,83914.0,0.34]
[1744900304710,0.01191682,83915.0,83913.0,0.34]
[1744900304916,0.23833781,83915.0,83913.0,0.34]
[1744900305117,0.25025065,83916.0,83913.0,0.34]
[1744900305118,0.25025065,83916.0,83913.0,0.5783416]
[1744900305354,0.25025065,83916.0,83913.0,0.5902587]
[1744900305570,0.25024844,83917.0,83914.0,0.23833905]
[1744900305777,0.23833366,83916.0,83913.0,0.3519171]
[1744900305981,0.01191653,83917.0,83913.0,0.3519171]
[1744900306186,0.23833925,83914.0,83913.0,0.34]
[1744900306390,0.23833643,83915.0,83913.0,0.34]
[1744900307043,0.0119171,83913.0,83910.0,0.34]
[1744900307250,0.25025947,83913.0,83910.0,0.5902658]
[1744900307460,0.23834777,83911.0,83910.0,0.34]
[1744900307666,0.0119171,83913.0,83910.0,0.34]
[1744900308311,0.25025327,83915.0,83911.0,0.01191738]
[1744900308489,0.01191568,83923.0,83920.0,0.23832221]
[1744900309001,0.01191568,83923.0,83917.0,0.25024726]
[1744900309002,0.23832275,83920.0,83917.0,0.25024726]
[1744900309213,0.25023886,83920.0,83917.0,0.01191653]
[1744900309422,0.001,83921.0,83920.0,0.23832221]
[1744900309636,0.001,83921.0,83920.0,0.57832221]
[1744900309841,0.001,83921.0,83920.0,0.62762221]
[1744900311369,0.01191369,83937.0,83930.0,0.01191469]
[1744900311583,0.2501882,83937.0,83934.0,0.01191412]
[1744900311952,0.2501882,83937.0,83933.0,0.25019791]
[1744900312041,0.25019047,83937.0,83932.0,0.34]
[1744900312267,0.23828259,83934.0,83932.0,0.34]
[1744900312751,0.23873585,83934.0,83931.0,0.34]
[1744900312996,0.00045326,83934.0,83932.0,0.238287]
[1744900313205,0.00045326,83934.0,83933.0,0.57828529]
[1744900313419,0.00045326,83934.0,83933.0,0.73504529]
[1744900313631,0.00145326,83934.0,83933.0,0.73504529]
[1744900313844,0.00145326,83934.0,83933.0,0.50560116]
[1744900314323,0.23973572,83934.0,83933.0,0.50560116]
[1744900314552,0.23973572,83934.0,83933.0,0.34884116]
[1744900314773,0.00145326,83934.0,83933.0,0.34884116]
[1744900314989,0.00045326,83934.0,83933.0,0.34884116]
[1744900315210,0.23873572,83934.0,83933.0,0.34884116]
[1744900317600,0.23873572,83934.0,83933.0,0.34684116]
[1744900317798,0.23873572,83934.0,83933.0,0.00884116]
[1744900318000,0.23873572,83934.0,83927.0,0.45946217]
[1744900318236,0.23829949,83928.0,83927.0,0.45946217]
[1744900318405,0.23829949,83928.0,83914.0,0.01191696]
[1744900318406,0.25023817,83921.0,83912.0,0.37710802]
[1744900318561,0.2502413,83919.0,83914.0,0.01191696]
[1744900318773,0.25023789,83923.0,83919.0,0.23832297]
[1744900318988,0.01191525,83926.0,83919.0,0.23832297]
[1744900318989,0.25022771,83924.0,83920.0,0.01191611]
[1744900319192,0.25023371,83922.0,83919.0,0.25024055]
[1744900319651,0.25023371,83922.0,83920.0,0.34]
[1744900320279,0.23831937,83921.0,83920.0,0.34]
[1744900320506,0.23831937,83921.0,83920.0,0.34870993]
[1744900320727,0.25023371,83922.0,83920.0,0.34870993]
[1744900320728,0.01191582,83922.0,83920.0,0.34870993]
[1744900321368,0.23831937,83921.0,83920.0,0.00870993]
[1744900321579,0.25023467,83922.0,83920.0,0.00870993]
[1744900321791,0.001,83922.0,83921.0,0.23831937]
[1744900321994,0.001,83922.0,83921.0,0.34]
[1744900322418,0.23931653,83922.0,83921.0,0.34]
[1744900322600,0.001,83922.0,83921.0,0.57831937]
[1744900323166,0.23931653,83922.0,83921.0,0.34]
[1744900323782,0.001,83922.0,83921.0,0.301]
[1744900324021,0.001,83922.0,83921.0,0.48331937]
[1744900324367,0.001,83922.0,83921.0,0.245]
[1744900324822,0.23931653,83922.0,83921.0,0.245]
[1744900325034,0.001,83922.0,83921.0,0.245]
[1744900325245,0.23830202,83928.0,83921.0,0.245]
[1744900325246,0.01191284,83943.0,83936.0,0.01191383]
[1744900325453,0.0008424,83946.0,83941.0,0.25017549]
[1744900325454,0.23909235,83946.0,83941.0,0.25017549]
[1744900325663,0.23826681,83940.0,83936.0,0.01191383]
[1744900325895,0.23826681,83940.0,83935.0,0.01191398]
[1744900325896,0.01191327,83940.0,83933.0,0.45946217]
[1744900326106,0.01191355,83938.0,83935.0,0.00591398]
[1744900326325,0.23827733,83936.0,83934.0,0.30291398]
[1744900326557,0.23827733,83936.0,83934.0,0.25691398]
[1744900326775,0.23827733,83936.0,83934.0,0.16191398]
[1744900326991,0.23829665,83929.0,83928.0,0.45946217]
[1744900327499,0.23829431,83930.0,83926.0,0.25021956]
[1744900327713,0.250209,83930.0,83926.0,0.25021956]
[1744900327930,0.250209,83930.0,83927.0,0.23830181]
[1744900328396,0.2502071,83931.0,83928.0,0.01191497]
[1744900328612,0.2382972,83929.0,83925.0,0.0119154]
[1744900328812,0.2382972,83929.0,83925.0,0.25022317]
[1744900329012,0.23830237,83927.0,83925.0,0.0119154]
[1744900329238,0.01191511,83927.0,83924.0,0.25022372]
[1744900329462,0.23831653,83922.0,83921.0,0.341]
[1744900329684,0.23831648,83923.0,83920.0,0.25023819]
[1744900329906,0.23831512,83923.0,83921.0,0.34]
[1744900330129,0.01191554,83924.0,83921.0,0.34]
[1744900330360,0.001,83927.0,83926.0,0.57830517]
[1744900330595,0.001,83927.0,83926.0,0.62730517]
[1744900331303,0.001,83927.0,83926.0,0.74675308]
[1744900331515,0.001,83927.0,83926.0,0.76129393]
[1744900331732,0.001,83927.0,83926.0,0.74675308]
[1744900332410,0.001,83927.0,83926.0,0.62730517]
[1744900335803,0.001,83936.0,83935.0,0.57827962]
[1744900339097,0.25016429,83945.0,83943.0,0.34]
[1744900339098,0.01191256,83945.0,83943.0,0.34]
[1744900340302,0.01391256,83945.0,83942.0,0.01191298]
[1744900340495,0.01391256,83945.0,83940.0,0.01191327]
[1744900340496,0.25416644,83945.0,83940.0,0.01191327]
[1744900340696,0.25416644,83945.0,83943.0,0.34]
[1744900340902,0.23825407,83944.0,83943.0,0.34]
[1744900341371,0.25216644,83945.0,83943.0,0.34]
[1744900341591,0.23825407,83944.0,83943.0,0.34]
[1744900341815,0.23825407,83944.0,83943.0,0.04824718]
[1744900342271,0.25016677,83944.0,83940.0,0.35191327]
[1744900342496,0.0139127,83944.0,83941.0,0.01191312]
[1744900343235,0.0119127,83944.0,83941.0,0.01191312]
[1744900343553,0.0129127,83944.0,83941.0,0.01191312]
[1744900343768,0.25016975,83943.0,83941.0,0.0478749]
[1744900343994,0.23826173,83942.0,83940.0,0.34]
[1744900344218,0.23826173,83942.0,83940.0,0.23826533]
[1744900344800,0.23826173,83942.0,83940.0,0.29441175]
[1744900345002,0.23826173,83942.0,83940.0,0.39614642]
[1744900345206,0.23826258,83941.0,83940.0,0.39614642]
[1744900345410,0.23826258,83941.0,83940.0,0.37614642]
[1744900345782,0.23826258,83941.0,83940.0,0.36414642]
[1744900345992,0.23826258,83941.0,83940.0,0.02414642]
[1744900346191,0.23827607,83937.0,83935.0,0.001]
[1744900346603,0.23827607,83937.0,83935.0,0.00991182]
[1744900346824,0.23827607,83937.0,83935.0,0.001]
[1744900347024,0.23828048,83935.0,83933.0,0.35091426]
[1744900347753,0.23827121,83938.0,83934.0,0.23828239]
[1744900347974,0.23827758,83936.0,83933.0,0.25019873]
[1744900348258,0.23827758,83936.0,83933.0,0.2988327]
[1744900348495,0.23828116,83935.0,83933.0,0.04863397]
[1744900348720,0.23828116,83935.0,83933.0,0.05778417]
[1744900348721,0.23828246,83934.0,83933.0,0.05778417]
[1744900348938,0.23828116,83935.0,83924.0,0.45946217]
[1744900348939,0.25022341,83925.0,83924.0,0.45946217]
[1744900349176,0.25023063,83923.0,83920.0,0.23832196]
[1744900349390,0.01191568,83923.0,83921.0,0.23831901]
[1744900349608,0.01191568,83923.0,83921.0,0.34]
[1744900349814,0.25022341,83925.0,83921.0,0.34]
[1744900350024,0.25022341,83925.0,83922.0,0.23831653]
[1744900350275,0.25022341,83925.0,83923.0,0.34]
[1744900350918,0.25021916,83927.0,83923.0,0.34]
[1744900351125,0.01191511,83927.0,83925.0,0.34]
[1744900351344,0.23830241,83927.0,83925.0,0.34]
[1744900351816,0.23826434,83941.0,83928.0,0.01191497]
[1744900352016,0.23826434,83941.0,83935.0,0.34]
[1744900352017,0.24027678,83936.0,83935.0,0.34]
[1744900352423,0.24027678,83936.0,83935.0,0.24]
[1744900352633,0.24027678,83936.0,83933.0,0.01191426]
[1744900352845,0.002,83936.0,83935.0,0.23827962]
[1744900353284,0.004,83936.0,83935.0,0.23827962]
[1744900353489,0.002,83936.0,83935.0,0.23827962]
[1744900353705,0.004,83936.0,83935.0,0.23827962]
[1744900354174,0.002,83936.0,83935.0,0.23827962]
[1744900354617,0.002,83936.0,83935.0,0.57827962]
[1744900355317,0.002,83936.0,83935.0,0.34]
[1744900355555,0.002,83936.0,83935.0,0.57827962]
[1744900355768,0.24027678,83936.0,83935.0,0.34]
[1744900356628,0.2383006,83928.0,83926.0,0.45946217]
[1744900356847,0.25022121,83926.0,83921.0,0.01191596]
[1744900357051,0.0119154,83925.0,83921.0,0.23831833]
[1744900357257,0.0119154,83925.0,83920.0,0.02076008]
[1744900357258,0.25022639,83924.0,83920.0,0.02076008]
[1744900357414,0.25022424,83925.0,83921.0,0.01191596]
[1744900357619,0.01191511,83927.0,83924.0,0.01191554]
[1744900357854,0.2502192,83927.0,83924.0,0.01191554]
[1744900358103,0.25022133,83926.0,83922.0,0.25023099]
[1744900358303,0.01191412,83934.0,83929.0,0.23829578]
[1744900358679,0.01191483,83929.0,83926.0,0.34]
[1744900358825,0.01191412,83934.0,83929.0,0.01191483]
[1744900359030,0.01191454,83931.0,83926.0,0.35191525]
[1744900359436,0.23829997,83928.0,83926.0,0.34]
[1744900359647,0.23829997,83928.0,83925.0,0.34]
[1744900360103,0.25021494,83928.0,83925.0,0.34]
[1744900361235,0.01191483,83929.0,83927.0,0.23830233]
[1744900361443,0.23829426,83930.0,83927.0,0.23830233]
[1744900361662,0.252192,83936.0,83932.0,0.23828759]
[1744900361878,0.252192,83936.0,83934.0,0.23828153]
[1744900361879,0.002,83936.0,83934.0,0.23828153]
[1744900362066,0.002,83936.0,83935.0,0.34]
[1744900363382,0.003,83936.0,83935.0,0.34]
[1744900364600,0.003,83936.0,83935.0,0.45944791]
[1744900365091,0.004,83936.0,83935.0,0.45944791]
[1744900365336,0.004,83936.0,83935.0,0.34]
[1744900366019,0.358153,83961.0,83953.0,0.01191142]
[1744900366020,0.0008424,83961.0,83953.0,0.01191142]
[1744900366293,0.23821758,83957.0,83954.0,0.23822446]
[1744900366581,0.25012843,83957.0,83953.0,0.25013693]
[1744900366829,0.01191071,83958.0,83953.0,0.25013693]
[1744900367046,0.01191071,83958.0,83954.0,0.23822537]
[1744900367249,0.25012549,83958.0,83954.0,0.23822537]
[1744900367665,0.01191085,83957.0,83953.0,0.25013693]
[1744900367873,0.01191085,83957.0,83954.0,0.23822381]
[1744900368071,0.0028424,83956.0,83954.0,0.23822381]
[1744900368765,0.0028424,83956.0,83955.0,0.23822285]
[1744900368998,0.0048424,83956.0,83955.0,0.23822285]
[1744900369210,0.01191114,83955.0,83952.0,0.34]
[1744900369430,0.25013442,83955.0,83949.0,0.01191199]
[1744900369634,0.01191114,83955.0,83950.0,0.01191185]
[1744900369840,0.25013489,83955.0,83950.0,0.01191185]
[1744900370022,0.25013399,83955.0,83952.0,0.34]
[1744900370153,0.25013496,83955.0,83952.0,0.34]
[1744900370363,0.25013496,83955.0,83952.0,0.57823132]
[1744900370567,0.25213496,83955.0,83952.0,0.57823132]
[1744900370773,0.23822741,83954.0,83952.0,0.34]
[1744900371001,0.23822741,83954.0,83950.0,0.25014647]
[1744900371002,0.01191142,83953.0,83950.0,0.25014647]
[1744900371259,0.25113496,83955.0,83950.0,0.25014647]
[1744900371260,0.01291114,83955.0,83954.0,0.34]
[1744900371462,0.002,83955.0,83954.0,0.57822569]
[1744900371904,0.001,83955.0,83954.0,0.57822569]
[1744900372112,0.002,83955.0,83954.0,0.57822569]
[1744900372358,0.001,83955.0,83954.0,0.57822569]
[1744900372561,0.003,83955.0,83954.0,0.57822569]
[1744900372676,0.002,83955.0,83954.0,0.59276654]
[1744900372886,0.002,83955.0,83954.0,0.71321445]
[1744900373354,0.002,83955.0,83954.0,0.6986736]
[1744900373561,0.002,83955.0,83954.0,0.57922569]
[1744900373972,0.004,83955.0,83954.0,0.57922569]